lending/lending_fUSD_20240809
["ID","MTS","AMOUNT","RATE_DAILY","PERIOD"]
[334517652,1723171891682,-5978.79,0.00024484,5]
[334517653,1723171891692,-500.0,0.00024484,5]
[334517654,1723171891702,-1548.35,0.00024484,5]
[334517655,1723171891711,-10706.0,0.00024484,5]
[334517656,1723171891721,-500.0,0.00024484,5]
[334517657,1723171891730,-500.0,0.00024484,5]
[334517658,1723171891739,-1023.89,0.00024484,5]
[334517659,1723171891749,-7235.6,0.00024484,5]
[334517660,1723171891761,-1426.29,0.00024484,5]
[334517661,1723171891772,-500.0,0.00024484,5]
[334517662,1723171891782,-2736.55,0.00024484,5]
[334517663,1723171891791,-585.22,0.00024484,5]
[334517664,1723171891801,-1687.86,0.00024484,5]
[334517665,1723171891811,-545.34,0.00024484,5]
[334517666,1723171891820,-419.1,0.00024484,5]
[334517667,1723171891829,-500.0,0.00024484,5]
[334517668,1723171891839,-150.0,0.00024485,2]
[334517669,1723171891849,-2430.76,0.00024485,5]
[334517670,1723171891860,-1065.94,0.00024485,5]
[334517671,1723171891869,-2634.52,0.00024485,5]
[334517672,1723171891879,-500.0,0.00024485,5]
[334517673,1723171891889,-3195.3,0.00024485,5]
[334517674,1723171891899,-1911.26,0.00024486,5]
[334517675,1723171891908,-500.0,0.00024486,5]
[334517676,1723171891917,-726.97,0.00024486,5]
[334517677,1723171891927,-500.0,0.00024486,5]
[334517678,1723171891937,-1811.01,0.00024486,5]
[334517679,1723171891946,-1003.44,0.00024486,5]
[334517680,1723171891955,-500.0,0.00024486,5]
[334517681,1723171891964,-800.94,0.00024486,5]
[334517682,1723171891973,-557.49,0.00024486,5]
[334517683,1723171891982,-1815.71,0.00024486,5]
[334517684,1723171891991,-500.0,0.00024486,5]
[334517685,1723171892000,-1228.71,0.00024486,5]
[334517686,1723171892009,-914.69,0.00024486,5]
[334517687,1723171892018,-2869.45,0.00024486,5]
[334517688,1723171892027,-2678.36,0.00024486,5]
[334517689,1723171892036,-848.65,0.00024486,5]
[334517690,1723171892046,-500.0,0.00024486,5]
[334517691,1723171892055,-2190.14,0.00024486,5]
[334517692,1723171892064,-1752.48,0.00024486,5]
[334517693,1723171892073,-644.39,0.00024486,5]
[334517694,1723171892082,-607.23,0.00024486,5]
[334517695,1723171892091,-643.53,0.00024486,5]
[334517696,1723171892100,-809.54,0.00024486,5]
[334517697,1723171892109,-1293.91,0.00024486,5]
[334517698,1723171892118,-500.0,0.00024486,5]
[334517699,1723171892128,-572.55,0.00024486,5]
[334517700,1723171892138,-2712.63,0.00024486,5]
[334517701,1723171892147,-4126.62,0.00024486,5]
[334517702,1723171892157,-3085.08,0.00024486,5]
[334517703,1723171892167,-2932.68,0.00024486,5]
[334517704,1723171892178,-1397.91,0.00024486,5]
[334517705,1723171892188,-1457.89,0.00024486,5]
[334517706,1723171892198,-500.0,0.00024486,5]
[334517707,1723171892208,-3094.81,0.00024486,5]
[334517708,1723171892218,-776.73,0.00024486,5]
[334517709,1723171892229,-500.0,0.00024486,5]
[334517710,1723171892241,-3406.17,0.00024486,5]
[334517711,1723171892251,-500.0,0.00024486,5]
[334517712,1723171892262,-500.0,0.00024486,5]
[334517713,1723171892272,-1915.74,0.00024486,5]
[334517714,1723171892282,-1107.61,0.00024486,5]
[334517715,1723171892293,-500.0,0.00024486,5]
[334517716,1723171892303,-500.0,0.00024486,5]
[334517717,1723171892313,-500.0,0.00024486,5]
[334517718,1723171892323,-2152.85,0.00024486,5]
[334517719,1723171892334,-500.0,0.00024486,5]
[334517720,1723171892344,-500.0,0.00024486,5]
[334517721,1723171892354,-500.0,0.00024486,5]
[334517722,1723171892364,-500.0,0.00024486,5]
[334517723,1723171892374,-500.0,0.00024486,5]
[334517724,1723171892386,-833.6,0.00024486,5]
[334517725,1723171892396,-500.0,0.00024486,5]
[334517726,1723171892570,-518.05,0.00024486,5]
[334517727,1723171892581,-660.98,0.00024486,5]
[334517728,1723171892590,-669.96,0.00024486,5]
[334517729,1723171892600,-500.0,0.00024486,5]
[334517730,1723171892609,-500.0,0.00024486,5]
[334517731,1723171892619,-500.0,0.00024486,5]
[334517732,1723171892628,-669.17,0.00024486,5]
[334517733,1723171892640,-661.89,0.00024486,5]
[334517734,1723171892650,-606.46050063,0.00024486,5]
[334517735,1723171892659,-731.09,0.00024486,5]
[334517736,1723171892668,-2113.55,0.00024486,5]
[334517737,1723171892678,-2015.89,0.00024486,5]
[334517738,1723171892687,-778.03,0.00024486,5]
[334517739,1723171892696,-567.43,0.00024486,5]
[334517740,1723171892706,-1505.36,0.00024486,5]
[334517741,1723171892715,-1088.16,0.00024486,5]
[334517742,1723171892725,-1735.36,0.00024486,5]
[334517743,1723171892734,-500.0,0.00024486,5]
[334517744,1723171892743,-580.74,0.00024486,5]
[334517745,1723171892753,-1346.12,0.00024486,5]
[334517746,1723171892766,-4584.4,0.00024486,5]
[334517747,1723171892776,-1285.24,0.00024486,5]
[334517748,1723171892785,-613.41,0.00024486,5]
[334517749,1723171892794,-513.24,0.00024486,5]
[334517750,1723171892804,-500.0,0.00024486,5]
[334517751,1723171892813,-2715.05,0.00024486,5]
[334517752,1723171892823,-1180.1,0.00024486,5]
[334517753,1723171892832,-1944.18,0.00024486,5]
[334517754,1723171892843,-500.0,0.00024486,5]
[334517755,1723171892852,-500.0,0.00024486,5]
[334517756,1723171892862,-500.0,0.00024486,5]
[334517757,1723171892871,-2462.55,0.00024486,5]
[334517758,1723171892882,-500.0,0.00024486,5]
[334517759,1723171892891,-554.71,0.00024486,5]
[334517760,1723171892901,-1179.23,0.00024486,5]
[334517761,1723171892910,-192.93267809,0.00024486,5]
[334517762,1723171892920,-500.0,0.00024486,5]
[334517763,1723171892929,-353.22460497,0.00024486,5]
[334517764,1723171892938,-732.97,0.00024486,5]
[334517765,1723171892948,-500.0,0.00024486,5]
[334517766,1723171892958,-500.0,0.00024486,5]
[334517767,1723171892967,-1788.76,0.00024486,5]
[334517768,1723171892976,-1017.55,0.00024486,5]
[334517769,1723171892986,-627.71,0.00024486,5]
[334517770,1723171892995,-500.0,0.00024486,5]
[334517771,1723171893004,-739.6,0.00024486,5]
[334517772,1723171893014,-500.0,0.00024486,5]
[334517773,1723171893024,-1055.55,0.00024486,5]
[334517774,1723171893034,-500.0,0.00024486,5]
[334517775,1723171893044,-662.03,0.00024486,5]
[334517776,1723171893053,-220.0,0.00024486,5]
[334517777,1723171893062,-885.43,0.00024486,5]
[334517778,1723171893072,-672.85,0.00024486,5]
[334517779,1723171893082,-168.91415269,0.00024486,5]
[334517780,1723171893091,-1492.08,0.00024486,5]
[334517781,1723171893100,-594.87,0.00024486,5]
[334517782,1723171893110,-500.0,0.00024486,5]
[334517783,1723171893120,-1548.35,0.00024486,5]
[334517784,1723171893130,-500.0,0.00024486,5]
[334517785,1723171893139,-500.0,0.00024486,5]
[334517786,1723171893149,-1023.89,0.00024486,5]
[334517787,1723171893158,-1426.29,0.00024486,5]
[334517788,1723171893168,-463.58,0.00024486,5]
[334517789,1723171893180,-585.22,0.00024486,5]
[334517790,1723171893189,-1687.86,0.00024486,5]
[334517791,1723171893198,-500.0,0.00024486,5]
[334517792,1723171893207,-150.0,0.00024487,2]
[334517793,1723171893217,-612.49,0.00024492,5]
[334517794,1723171893226,-233.29367228,0.00024492,5]
[334517795,1723171893235,-1030.47,0.00024492,5]
[334517796,1723171893244,-1030.47,0.00024492,5]
[334517797,1723171893254,-2943.42,0.00024492,5]
[334517798,1723171893263,-500.0,0.00024492,5]
[334517799,1723171893272,-500.0,0.00024492,5]
[334517800,1723171893281,-500.0,0.00024492,5]
[334517801,1723171893291,-500.0,0.00024492,5]
[334517802,1723171893300,-2150.58,0.00024492,5]
[334517803,1723171893310,-2345.46,0.00024492,5]
[334517804,1723171893319,-1087.85,0.00024492,5]
[334517805,1723171893329,-1087.85,0.00024492,5]
[334517806,1723171893338,-760.07,0.00024492,5]
[334517807,1723171893348,-760.07,0.00024492,5]
[334517808,1723171893358,-500.0,0.00024492,5]
[334517809,1723171893367,-500.0,0.00024492,5]
[334517810,1723171893377,-1179.51,0.00024492,5]
[334517811,1723171893387,-1179.51,0.00024492,5]
[334517812,1723171893397,-6388.29,0.00024492,5]
[334517813,1723171893406,-3716.14,0.00024492,5]
[334517814,1723171893416,-3716.14,0.00024492,5]
[334517815,1723171893425,-18922.96,0.00024492,5]
[334517816,1723171893435,-3660.94,0.00024492,5]
[334517817,1723171893445,-3660.94,0.00024492,5]
[334517818,1723171893454,-1099.01,0.00024492,5]
[334517819,1723171893464,-1099.01,0.00024492,5]
[334517820,1723171893473,-2254.7,0.00024492,5]
[334517821,1723171893484,-603.71,0.00024492,5]
[334517822,1723171893493,-603.71,0.00024492,5]
[334517823,1723171893503,-5005.7,0.00024492,5]
[334517824,1723171893513,-2348.69,0.00024492,5]
[334517825,1723171893523,-1965.9,0.00024492,5]
[334517826,1723171893533,-1594.68,0.00024492,5]
[334517827,1723171893543,-2674.59,0.00024492,5]
[334517828,1723171893553,-9557.82,0.00024492,5]
[334517829,1723171893562,-9557.82,0.00024492,5]
[334517830,1723171893573,-1036.78,0.00024492,5]
[334517831,1723171893582,-2313.25,0.00024492,5]
[334517832,1723171893592,-4769.55,0.00024492,5]
[334517833,1723171893602,-4769.55,0.00024492,5]
[334517834,1723171893613,-500.0,0.00024492,5]
[334517835,1723171893622,-5606.14,0.00024492,5]
[334517836,1723171893633,-1143.18,0.00024492,5]
[334517837,1723171893645,-1143.18,0.00024492,5]
[334517838,1723171893656,-1402.26,0.00024492,5]
[334517839,1723171893668,-2404.25,0.00024492,5]
[334517840,1723171893679,-2841.53,0.00024492,5]
[334517841,1723171893689,-2841.53,0.00024492,5]
[334517842,1723171893698,-1568.85,0.00024492,5]
[334517843,1723171893708,-1568.85,0.00024492,5]
[334517844,1723171893718,-21990.9,0.00024492,5]
[334517845,1723171893728,-5978.79,0.00024492,5]
[334517846,1723171893738,-5978.79,0.00024492,5]
[334517847,1723171893748,-10706.0,0.00024492,5]
[334517848,1723171893759,-10706.0,0.00024492,5]
[334517849,1723171893770,-7235.6,0.00024492,5]
[334517850,1723171893779,-7235.6,0.00024492,5]
[334517851,1723171893789,-2736.55,0.00024492,5]
[334517852,1723171893798,-2736.55,0.00024492,5]
[334517853,1723171893809,-545.34,0.00024492,5]
[334517854,1723171893818,-172.90513204,0.00024493,2]
[334517855,1723171893828,-612.49,0.00024493,5]
[334517856,1723171893837,-612.49,0.00024493,5]
[334517857,1723171893850,-612.49,0.00024493,5]
[334517858,1723171893860,-612.49,0.00024493,5]
[334517859,1723171893870,-612.49,0.00024493,5]
[334517860,1723171893879,-612.49,0.00024493,5]
[334517861,1723171893892,-612.49,0.00024493,5]
[334517862,1723171893902,-612.49,0.00024493,5]
[334517863,1723171893911,-612.49939423,0.00024493,5]
[334517864,1723171893921,-151.0,0.00024493,7]
[334517865,1723171893930,-151.0,0.00024493,7]
[334517866,1723171893939,-1030.47,0.00024493,5]
[334517867,1723171893949,-1030.47,0.00024493,5]
[334517868,1723171893959,-1030.47,0.00024493,5]
[334517869,1723171893968,-1030.47,0.00024493,5]
[334517870,1723171893977,-1030.48231262,0.00024493,5]
[334517871,1723171893987,-2943.42,0.00024493,5]
[334517872,1723171893997,-2943.42,0.00024493,5]
[334517873,1723171894007,-2943.42,0.00024493,5]
[334517874,1723171894016,-2943.42,0.00024493,5]
[334517875,1723171894026,-2943.42,0.00024493,5]
[334517876,1723171894036,-2943.42,0.00024493,5]
[334517877,1723171894045,-500.0,0.00024493,5]
[334517878,1723171894055,-500.0,0.00024493,5]
[334517879,1723171894064,-2943.42,0.00024493,5]
[334517880,1723171894073,-407.4593833,0.00024493,5]
[334517881,1723171894083,-2943.42,0.00024493,5]
[334517882,1723171894092,-2943.49616136,0.00024493,5]
[334517883,1723171894102,-500.0,0.00024493,5]
[334517884,1723171894111,-381.41057127,0.00024493,5]
[334517885,1723171894121,-500.0,0.00024493,5]
[334517886,1723171894130,-500.0,0.00024493,5]
[334517887,1723171894141,-500.0,0.00024493,5]
[334517888,1723171894151,-500.0,0.00024493,5]
[334517889,1723171894160,-500.0,0.00024493,5]
[334517890,1723171894169,-500.0,0.00024493,5]
[334517891,1723171894179,-500.0,0.00024493,5]
[334517892,1723171894188,-464.42150703,0.00024493,5]
[334517893,1723171894197,-2150.58,0.00024493,5]
[334517894,1723171894206,-2150.58,0.00024493,5]
[334517895,1723171894215,-2150.58,0.00024493,5]
[334517896,1723171894224,-2150.58,0.00024493,5]
[334517897,1723171894233,-2150.58,0.00024493,5]
[334517898,1723171894242,-2150.58,0.00024493,5]
[334517899,1723171894254,-2150.58,0.00024493,5]
[334517900,1723171894263,-2150.58,0.00024493,5]
[334517901,1723171894272,-2150.75552792,0.00024493,5]
[334517902,1723171894282,-2345.46,0.00024493,5]
[334517903,1723171894291,-2345.46,0.00024493,5]
[334517904,1723171894301,-2345.46,0.00024493,5]
[334517905,1723171894311,-2345.46,0.00024493,5]
[334517906,1723171894321,-2345.46,0.00024493,5]
[334517907,1723171894330,-2345.46,0.00024493,5]
[334517908,1723171894340,-2345.46,0.00024493,5]
[334517909,1723171894350,-2345.46,0.00024493,5]
[334517910,1723171894360,-2345.56010945,0.00024493,5]
[334517911,1723171894370,-1087.85,0.00024493,5]
[334517912,1723171894379,-1087.85,0.00024493,5]
[334517913,1723171894390,-1087.85,0.00024493,5]
[334517914,1723171894399,-1087.85,0.00024493,5]
[334517915,1723171894408,-1088.02158895,0.00024493,5]
[334517916,1723171894417,-760.07,0.00024493,5]
[334517917,1723171894427,-760.07,0.00024493,5]
[334517918,1723171894436,-760.07,0.00024493,5]
[334517919,1723171894445,-760.07,0.00024493,5]
[334517920,1723171894456,-760.25,0.00024493,5]
[334517921,1723171894465,-500.0,0.00024493,5]
[334517922,1723171894475,-500.0,0.00024493,5]
[334517923,1723171894485,-500.0,0.00024493,5]
[334517924,1723171894494,-500.0,0.00024493,5]
[334517925,1723171894504,-199.2,0.00024493,5]
[334517926,1723171894514,-1179.51,0.00024493,5]
[334517927,1723171894523,-1179.51,0.00024493,5]
[334517928,1723171894533,-1179.51,0.00024493,5]
[334517929,1723171894543,-1179.51,0.00024493,5]
[334517930,1723171894552,-1179.53123157,0.00024493,5]
[334517931,1723171894562,-500.0,0.00024493,5]
[334517932,1723171894572,-6388.29,0.00024493,5]
[334517933,1723171894581,-6388.29,0.00024493,5]
[334517934,1723171894591,-6388.29,0.00024493,5]
[334517935,1723171894601,-6388.29,0.00024493,5]
[334517936,1723171894612,-6388.29,0.00024493,5]
[334517937,1723171894621,-6388.29,0.00024493,5]
[334517938,1723171894633,-6388.29,0.00024493,5]
[334517939,1723171894643,-6388.29,0.00024493,5]
[334517940,1723171894653,-6388.40997288,0.00024493,5]
[334517941,1723171894662,-3716.14,0.00024493,5]
[334517942,1723171894672,-18922.96,0.00024493,5]
[334517943,1723171894682,-18922.96,0.00024493,5]
[334517944,1723171894691,-18922.96,0.00024493,5]
[334517945,1723171894701,-18922.96,0.00024493,5]
[334517946,1723171894710,-18922.96,0.00024493,5]
[334517947,1723171894720,-18922.96,0.00024493,5]
[334517948,1723171894729,-18922.96,0.00024493,5]
[334517949,1723171894739,-18922.96,0.00024493,5]
[334517950,1723171894749,-18923.04791565,0.00024493,5]
[334517951,1723171894759,-3660.94,0.00024493,5]
[334517952,1723171894772,-3660.94,0.00024493,5]
[334517953,1723171894781,-3660.94,0.00024493,5]
[334517954,1723171894790,-3660.94,0.00024493,5]
[334517955,1723171894800,-3661.11018163,0.00024493,5]
[334517956,1723171894810,-1099.01,0.00024493,5]
[334517957,1723171894820,-1099.01,0.00024493,5]
[334517958,1723171894831,-1099.01,0.00024493,5]
[334517959,1723171894843,-1099.01,0.00024493,5]
[334517960,1723171894852,-1099.08073288,0.00024493,5]
[334517961,1723171894863,-5520.18,0.00024493,5]
[334517962,1723171894873,-2254.7,0.00024493,5]
[334517963,1723171894884,-2254.7,0.00024493,5]
[334517964,1723171894893,-2254.7,0.00024493,5]
[334517965,1723171894903,-2254.7,0.00024493,5]
[334517966,1723171894912,-2254.7,0.00024493,5]
[334517967,1723171894921,-2254.7,0.00024493,5]
[334517968,1723171894930,-2254.7,0.00024493,5]
[334517969,1723171894940,-2254.7,0.00024493,5]
[334517970,1723171894949,-2254.76523473,0.00024493,5]
[334517971,1723171894959,-8839.04,0.00024493,5]
[334517972,1723171894968,-603.71,0.00024493,5]
[334517973,1723171894977,-603.71,0.00024493,5]
[334517974,1723171894986,-603.71,0.00024493,5]
[334517975,1723171894996,-603.71,0.00024493,5]
[334517976,1723171895005,-603.77,0.00024493,5]
[334517977,1723171895014,-3247.8,0.00024493,5]
[334517978,1723171895023,-2430.76,0.00024493,5]
[334517979,1723171895032,-2430.76,0.00024493,5]
[334517980,1723171895040,-2430.76,0.00024493,5]
[334517981,1723171895050,-3000.82,0.00024493,5]
[334517982,1723171895059,-5005.7,0.00024493,5]
[334517983,1723171895069,-5005.7,0.00024493,5]
[334517984,1723171895079,-5005.7,0.00024493,5]
[334517985,1723171895088,-5005.7,0.00024493,5]
[334517986,1723171895098,-5005.7,0.00024493,5]
[334517987,1723171895107,-14156.83,0.00024493,5]
[334517988,1723171895117,-5005.7,0.00024493,5]
[334517989,1723171895126,-5005.7,0.00024493,5]
[334517990,1723171895272,-5005.7,0.00024493,5]
[334517991,1723171895282,-1065.94,0.00024493,5]
[334517992,1723171895292,-5005.74854632,0.00024493,5]
[334517993,1723171895301,-1065.94,0.00024493,5]
[334517994,1723171895310,-1065.94,0.00024493,5]
[334517995,1723171895319,-2348.69,0.00024493,5]
[334517996,1723171895328,-2348.69,0.00024493,5]
[334517997,1723171895336,-2348.69,0.00024493,5]
[334517998,1723171895346,-24585.65,0.00024493,5]
[334517999,1723171895355,-2348.69,0.00024493,5]
[334518000,1723171895364,-2348.69,0.00024493,5]
[334518001,1723171895373,-2348.69,0.00024493,5]
[334518002,1723171895383,-2348.69,0.00024493,5]
[334518003,1723171895392,-2348.69,0.00024493,5]
[334518004,1723171895402,-2348.85828221,0.00024493,5]
[334518005,1723171895411,-1965.9,0.00024493,5]
[334518006,1723171895420,-1965.9,0.00024493,5]
[334518007,1723171895430,-1965.9,0.00024493,5]
[334518008,1723171895439,-1965.9,0.00024493,5]
[334518009,1723171895449,-1965.9,0.00024493,5]
[334518010,1723171895460,-1965.9,0.00024493,5]
[334518011,1723171895471,-1965.9,0.00024493,5]
[334518012,1723171895482,-1965.9,0.00024493,5]
[334518013,1723171895491,-1966.1250722,0.00024493,5]
[334518014,1723171895501,-1594.68,0.00024493,5]
[334518015,1723171895511,-1594.68,0.00024493,5]
[334518016,1723171895522,-1594.68,0.00024493,5]
[334518017,1723171895532,-1594.68,0.00024493,5]
[334518018,1723171895542,-1594.68,0.00024493,5]
[334518019,1723171895551,-1594.68,0.00024493,5]
[334518020,1723171895560,-1594.68,0.00024493,5]
[334518021,1723171895571,-1594.68,0.00024493,5]
[334518022,1723171895580,-1594.89752781,0.00024493,5]
[334518023,1723171895589,-6055.07,0.00024493,5]
[334518024,1723171895598,-2674.59,0.00024493,5]
[334518025,1723171895607,-2674.59,0.00024493,5]
[334518026,1723171895617,-2674.59,0.00024493,5]
[334518027,1723171895626,-2674.59,0.00024493,5]
[334518028,1723171895636,-2674.59,0.00024493,5]
[334518029,1723171895645,-2674.59,0.00024493,5]
[334518030,1723171895655,-2674.59,0.00024493,5]
[334518031,1723171895664,-2674.59,0.00024493,5]
[334518032,1723171895673,-2634.52,0.00024493,5]
[334518033,1723171895683,-2674.73383375,0.00024493,5]
[334518034,1723171895693,-2634.52,0.00024493,5]
[334518035,1723171895703,-2634.52,0.00024493,5]
[334518036,1723171895712,-151.0,0.00024493,7]
[334518037,1723171895722,-9557.82,0.00024493,5]
[334518038,1723171895732,-9557.82,0.00024493,5]
[334518039,1723171895742,-9557.82,0.00024493,5]
[334518040,1723171895751,-9557.82,0.00024493,5]
[334518041,1723171895763,-9557.86128477,0.00024493,5]
[334518042,1723171895774,-1036.78,0.00024493,5]
[334518043,1723171895784,-1036.78,0.00024493,5]
[334518044,1723171895794,-1036.78,0.00024493,5]
[334518045,1723171895804,-1036.78,0.00024493,5]
[334518046,1723171895814,-1036.78,0.00024493,5]
[334518047,1723171895824,-1036.78,0.00024493,5]
[334518048,1723171895834,-1036.78,0.00024493,5]
[334518049,1723171895844,-1036.78,0.00024493,5]
[334518050,1723171895854,-1036.93714963,0.00024493,5]
[334518051,1723171895864,-500.0,0.00024493,5]
[334518052,1723171895874,-500.0,0.00024493,5]
[334518053,1723171895884,-500.0,0.00024493,5]
[334518054,1723171895894,-2313.25,0.00024493,5]
[334518055,1723171895904,-2313.25,0.00024493,5]
[334518056,1723171895913,-2313.25,0.00024493,5]
[334518057,1723171895923,-2313.25,0.00024493,5]
[334518058,1723171895933,-2313.25,0.00024493,5]
[334518059,1723171895943,-2313.25,0.00024493,5]
[334518060,1723171895952,-2313.25,0.00024493,5]
[334518061,1723171895962,-2313.25,0.00024493,5]
[334518062,1723171895971,-2313.31100509,0.00024493,5]
[334518063,1723171895981,-4769.55,0.00024493,5]
[334518064,1723171895991,-3195.3,0.00024493,5]
[334518065,1723171896000,-4769.55,0.00024493,5]
[334518066,1723171896010,-3195.3,0.00024493,5]
[334518067,1723171896019,-4769.55,0.00024493,5]
[334518068,1723171896030,-3195.3,0.00024493,5]
[334518069,1723171896041,-4769.55,0.00024493,5]
[334518070,1723171896050,-4769.63758976,0.00024493,5]
[334518071,1723171896060,-500.0,0.00024493,5]
[334518072,1723171896069,-500.0,0.00024493,5]
[334518073,1723171896078,-500.0,0.00024493,5]
[334518074,1723171896088,-500.0,0.00024493,5]
[334518075,1723171896098,-500.0,0.00024493,5]
[334518076,1723171896108,-500.0,0.00024493,5]
[334518077,1723171896117,-500.0,0.00024493,5]
[334518078,1723171896126,-500.0,0.00024493,5]
[334518079,1723171896137,-406.44,0.00024493,5]
[334518080,1723171896146,-5606.14,0.00024493,5]
[334518081,1723171896156,-5606.14,0.00024493,5]
[334518082,1723171896166,-5606.14,0.00024493,5]
[334518083,1723171896176,-5606.14,0.00024493,5]
[334518084,1723171896185,-5606.14,0.00024493,5]
[334518085,1723171896195,-5606.14,0.00024493,5]
[334518086,1723171896205,-5606.14,0.00024493,5]
[334518087,1723171896214,-5606.14,0.00024493,5]
[334518088,1723171896223,-5606.27718447,0.00024493,5]
[334518089,1723171896232,-1143.18,0.00024493,5]
[334518090,1723171896241,-1143.18,0.00024493,5]
[334518091,1723171896250,-1143.18,0.00024493,5]
[334518092,1723171896260,-1402.26,0.00024493,5]
[334518093,1723171896270,-1143.18,0.00024493,5]
[334518094,1723171896280,-1402.26,0.00024493,5]
[334518095,1723171896289,-1143.37598747,0.00024493,5]
[334518096,1723171896299,-1402.26,0.00024493,5]
[334518097,1723171896310,-1402.26,0.00024493,5]
[334518098,1723171896320,-1402.26,0.00024493,5]
[334518099,1723171896329,-1402.26,0.00024493,5]
[334518100,1723171896339,-1402.26,0.00024493,5]
[334518101,1723171896350,-1402.26,0.00024493,5]
[334518102,1723171896360,-1402.32503016,0.00024493,5]
[334518103,1723171896370,-5278.77,0.00024493,5]
[334518104,1723171896380,-2404.25,0.00024493,5]
[334518105,1723171896393,-2404.25,0.00024493,5]
[334518106,1723171896403,-2404.25,0.00024493,5]
[334518107,1723171896413,-2404.25,0.00024493,5]
[334518108,1723171896423,-2404.25,0.00024493,5]
[334518109,1723171896434,-2404.25,0.00024493,5]
[334518110,1723171896443,-2404.25,0.00024493,5]
[334518111,1723171896454,-2404.25,0.00024493,5]
[334518112,1723171896463,-2404.28968067,0.00024493,5]
[334518113,1723171896473,-5184.38,0.00024493,5]
[334518114,1723171896483,-2841.53,0.00024493,5]
[334518115,1723171896493,-2841.53,0.00024493,5]
[334518116,1723171896503,-2841.53,0.00024493,5]
[334518117,1723171896512,-2841.53,0.00024493,5]
[334518118,1723171896522,-2841.74,0.00024493,5]
[334518119,1723171896532,-1568.85,0.00024493,5]
[334518120,1723171896541,-1568.85,0.00024493,5]
[334518121,1723171896551,-1568.85,0.00024493,5]
[334518122,1723171896561,-1568.85,0.00024493,5]
[334518123,1723171896571,-1568.89186805,0.00024493,5]
[334518124,1723171896581,-21990.9,0.00024493,5]
[334518125,1723171896591,-21990.9,0.00024493,5]
[334518126,1723171896601,-21990.9,0.00024493,5]
[334518127,1723171896611,-21990.9,0.00024493,5]
[334518128,1723171896621,-21990.9,0.00024493,5]
[334518129,1723171896631,-21990.9,0.00024493,5]
[334518130,1723171896641,-21990.9,0.00024493,5]
[334518131,1723171896651,-21990.9,0.00024493,5]
[334518132,1723171896661,-21991.04404377,0.00024493,5]
[334518133,1723171896670,-5978.79,0.00024493,5]
[334518134,1723171896680,-5978.79,0.00024493,5]
[334518135,1723171896689,-5978.79,0.00024493,5]
[334518136,1723171896698,-5978.79,0.00024493,5]
[334518137,1723171896707,-5978.95663573,0.00024493,5]
[334518138,1723171896717,-10706.0,0.00024493,5]
[334518139,1723171896727,-10706.0,0.00024493,5]
[334518140,1723171896736,-10706.0,0.00024493,5]
[334518141,1723171896746,-10706.0,0.00024493,5]
[334518142,1723171896756,-10706.22334564,0.00024493,5]
[334518143,1723171896769,-7235.6,0.00024493,5]
[334518144,1723171896777,-7235.6,0.00024493,5]
[334518145,1723171896786,-7235.6,0.00024493,5]
[334518146,1723171896795,-7235.6,0.00024493,5]
[334518147,1723171896805,-7235.60478304,0.00024493,5]
[334518148,1723171896815,-2736.55,0.00024493,5]
[334518149,1723171896824,-2736.55,0.00024493,5]
[334518150,1723171896834,-2736.55,0.00024493,5]
[334518151,1723171896844,-2736.55,0.00024493,5]